[Event "FIDE World Rapid-ch Open 2018"]
[White "Popov, Valerij"]
[Black "Hirneise, Jens"]
[Site "St. Petersburg"]
[Round "3.84"]
[Annotator "ChessBase"]
[Result "1/2-1/2"]
[Date "2018.12.26"]
[WhiteElo "2532"]
[BlackElo "2371"]
[PlyCount "83"]
[TimeControl "900+10"]

1. c4 {[%emt 0:0:0]} g6 {[%emt 0:0:0]} 2. Nf3 {[%emt 0:0:2]} Bg7 {[%emt 0:0:0]
} 3. Nc3 {[%emt 0:0:6]} Nf6 {[%emt 0:0:0]} 4. e4 {[%emt 0:0:0]} d6 {[%emt 0:0:0]} 5. d4 {[%emt 0:0:1]} 0-0 {[%emt 0:0:3]} 6. Be2 {[%emt 0:0:2]
} e5 {[%emt 0:0:3]} 7. Be3 {[%emt 0:0:2]} Ng4 {[%emt 0:0:16]
} 8. Bg5 {[%emt 0:0:1]} f6 {[%emt 0:0:6]} 9. Bh4 {[%emt 0:0:2]} g5 {[%emt 0:0:16]
} 10. Bg3 {[%emt 0:0:2]} Nh6 {[%emt 0:0:30]} 11. h3 {[%emt 0:0:0]} Nc6 {[%emt 0:0:29]} 12. d5 {[%emt 0:0:4]} Ne7 {[%emt 0:0:25]} 13. Qd2 {[%emt 0:0:3]} Ng6 {[%emt 0:0:15]} 14. 0-0-0 {[%emt 0:0:20]} Nf4 {[%emt 0:0:26]
} 15. Bxf4 {[%emt 0:0:29]} gxf4 {[%emt 0:0:30]} 16. g4 {[%emt 0:0:33]
} fxg3 {[%emt 0:0:9]} 17. fxg3 {[%emt 0:0:1]} f5 {[%emt 0:0:0]} 18. Bd3 {[%emt 0:0:16]} fxe4 {[%emt 0:0:47]} 19. Bxe4 {[%emt 0:0:1]} Nf5 {[%emt 0:0:29]} 20. Qd3 {[%emt 0:1:59]} Kh8 {[%emt 0:2:5]} 21. g4 {[%emt 0:0:17]
} Ng3 {[%emt 0:0:50]} 22. Rhg1 {[%emt 0:0:12]} Nxe4 {[%emt 0:0:0]} 23. Nxe4 {[%emt 0:0:2]} Qe7 {[%emt 0:0:23]} 24. Nfd2 {[%emt 0:3:31]
} Bd7 {[%emt 0:0:14]} 25. Kb1 {[%emt 0:0:32]} Rf4 {[%emt 0:0:30]} 26. Rde1 {[%emt 0:1:31]
} Raf8 {[%emt 0:0:18]} 27. a3 {[%emt 0:0:25]} Be8 {[%emt 0:0:0]} 28. Ka2 {[%emt 0:1:1]} Bg6 {[%emt 0:0:8]} 29. Qb3 {[%emt 0:0:8]} b6 {[%emt 0:0:51]} 30. Qg3 {[%emt 0:0:19]} Bxe4 {[%emt 0:0:43]} 31. Nxe4 {[%emt 0:0:6]
} Rf3 {[%emt 0:0:5]} 32. Qg2 {[%emt 0:0:7]} Qh4 {[%emt 0:0:0]} 33. Rh1 {[%emt 0:0:34]} Bh6 {[%emt 0:0:44]} 34. Ref1 {[%emt 0:0:21]} R3f4 {[%emt 0:0:16]} 35. Ng3 {[%emt 0:2:7]} Rxf1 {[%emt 0:0:17]} 36. Rxf1 {[%emt 0:0:3]
} Rxf1 {[%emt 0:0:5]} 37. Qxf1 {[%emt 0:1:22]} Qxg3 {[%emt 0:0:0]} 38. Qf6+ {[%emt 0:0:1]} Kg8 {[%emt 0:0:4]} 39. Qe6+ {[%emt 0:0:1]
} Kg7 {[%emt 0:0:30]} 40. Qe7+ {[%emt 0:0:8]} Kg8 {[%emt 0:0:37]} 41. Qe6+ {[%emt 0:0:2]} Kg7 {[%emt 0:0:2]} 42. Qe7+ 1/2-1/2

[Event "FIDE World Rapid-ch Open 2018"]
[White "Kryakvin, Dmitry"]
[Black "Abdusattorov, Nodirbek"]
[Site "St. Petersburg"]
[Round "3.85"]
[Annotator "ChessBase"]
[Result "1-0"]
[Date "2018.12.26"]
[WhiteElo "2588"]
[BlackElo "2546"]
[PlyCount "79"]
[TimeControl "900+10"]

1. d4 {[%emt 0:0:0]} Nf6 {[%emt 0:0:0]} 2. c4 {[%emt 0:0:0]} e6 {[%emt 0:0:0]} 3. Nf3 {[%emt 0:0:0]} b6 {[%emt 0:0:3]} 4. g3 {[%emt 0:0:0]} Bb7 {[%emt 0:0:0]} 5. Bg2 {[%emt 0:0:0]} Be7 {[%emt 0:0:2]} 6. 0-0 {[%emt 0:0:0]} 0-0 {[%emt 0:0:2]} 7. Nc3 {[%emt 0:0:3]} Ne4 {[%emt 0:0:5]} 8. Bd2 {[%emt 0:0:1]} Bf6 {[%emt 0:1:1]} 9. Ne5 {[%emt 0:0:6]} Nxc3 {[%emt 0:0:9]
} 10. Bxc3 {[%emt 0:0:1]} Bxg2 {[%emt 0:0:5]} 11. Kxg2 {[%emt 0:0:1]
} d6 {[%emt 0:0:12]} 12. Ng4 {[%emt 0:0:11]} Nd7 {[%emt 0:0:0]} 13. e4 {[%emt 0:0:14]} Be7 {[%emt 0:1:15]} 14. f4 {[%emt 0:0:17]} f5 {[%emt 0:0:56]
} 15. exf5 {[%emt 0:0:40]} exf5 {[%emt 0:0:2]} 16. Ne3 {[%emt 0:0:1]
} g6 {[%emt 0:0:48]} 17. g4 {[%emt 0:0:34]} fxg4 {[%emt 0:0:0]} 18. Qxg4 {[%emt 0:0:35]} Rf7 {[%emt 0:1:8]} 19. Rae1 {[%emt 0:1:14]} Bf8 {[%emt 0:1:12]} 20. f5 {[%emt 0:1:36]} Nf6 {[%emt 0:0:56]} 21. Qf3 {[%emt 0:0:21]
} Bg7 {[%emt 0:1:26]} 22. fxg6 {[%emt 0:1:0]} hxg6 {[%emt 0:0:0]} 23. Kh1 {[%emt 0:0:25]} Qf8 {[%emt 0:0:21]} 24. Qg2 {[%emt 0:1:0]} Re8 {[%emt 0:3:17]} 25. Qxg6 {[%emt 0:0:12]} Ne4 {[%emt 0:0:27]} 26. Nf5 {[%emt 0:0:59]
} Rf6 {[%emt 0:0:45]} 27. Nh6+ {[%emt 0:2:12]} Kh8 {[%emt 0:0:0]} 28. Rxf6 {[%emt 0:0:59]} Nxf6 {[%emt 0:0:6]} 29. Rf1 {[%emt 0:3:33]} Qe7 {[%emt 0:2:17]} 30. Rxf6 {[%emt 0:1:0]} Qe2 {[%emt 0:0:1]} 31. Rf2 {[%emt 0:1:12]
} Qxf2 {[%emt 0:0:27]} 32. Qxe8+ Kh7 {[%emt 0:0:3]} 33. Qf7 {[%emt 0:0:8]
} Qe2 {[%emt 0:0:33]} 34. d5 {[%emt 0:0:45]} Qe4+ {[%emt 0:0:0]} 35. Kg1 {[%emt 0:0:1]} Qe3+ {[%emt 0:0:2]} 36. Kg2 {[%emt 0:0:20]} Qe2+ {[%emt 0:0:39]} 37. Kg3 {[%emt 0:0:13]} Qe3+ {[%emt 0:0:2]} 38. Qf3 {[%emt 0:0:50]
} Qxh6 {[%emt 0:1:8]} 39. Qf5+ {[%emt 0:0:10]} Kg8 {[%emt 0:0:0]} 40. Qg4 {[%emt 0:0:11]} 1-0

[Event "FIDE World Rapid-ch Open 2018"]
[White "Ghaem Maghami, Ehsan"]
[Black "Shubin, Kirill"]
[Site "St. Petersburg"]
[Round "3.86"]
[Annotator "ChessBase"]
[Result "1-0"]
[Date "2018.12.26"]
[WhiteElo "2537"]
[BlackElo "2334"]
[PlyCount "107"]
[TimeControl "900+10"]

1. d4 {[%emt 0:0:0]} e6 {[%emt 0:0:0]} 2. Nf3 {[%emt 0:0:0]} Nf6 {[%emt 0:0:0]
} 3. c4 {[%emt 0:0:4]} Bb4+ {[%emt 0:0:0]} 4. Bd2 {[%emt 0:0:0]} a5 {[%emt 0:0:0]} 5. g3 {[%emt 0:0:3]} d6 {[%emt 0:0:0]} 6. Bg2 {[%emt 0:0:4]
} Nbd7 {[%emt 0:0:0]} 7. 0-0 {[%emt 0:1:12]} e5 {[%emt 0:0:0]} 8. e3 {[%emt 0:0:32]} Bxd2 {[%emt 0:0:0]} 9. Qxd2 {[%emt 0:0:3]} 0-0 {[%emt 0:0:8]} 10. Nc3 {[%emt 0:0:2]} Re8 {[%emt 0:0:10]} 11. b3 {[%emt 0:0:0]} h6 {[%emt 0:2:23]} 12. Qc2 {[%emt 0:6:10]} Nf8 {[%emt 0:2:58]} 13. h3 {[%emt 0:0:6]} Bd7 {[%emt 0:0:22]} 14. Rad1 {[%emt 0:0:23]} Qc8 {[%emt 0:0:33]
} 15. Kh2 {[%emt 0:0:31]} Rb8 {[%emt 0:3:33]} 16. Rfe1 {[%emt 0:1:29]
} c6 {[%emt 0:0:53]} 17. dxe5 {[%emt 0:1:36]} dxe5 {[%emt 0:0:0]} 18. Nd2 {[%emt 0:0:5]} b6 {[%emt 0:2:9]} 19. Nde4 {[%emt 0:1:46]} Nxe4 {[%emt 0:0:17]} 20. Nxe4 {[%emt 0:0:3]} Qc7 {[%emt 0:1:7]} 21. Qc3 {[%emt 0:1:0]
} c5 {[%emt 0:0:27]} 22. Qd2 {[%emt 0:0:28]} f5 {[%emt 0:0:46]
} 23. Nd6 {[%emt 0:0:37]} Re7 {[%emt 0:0:8]} 24. e4 {[%emt 0:1:19]} fxe4 {[%emt 0:1:22]
} 25. Qd5+ {[%emt 0:0:5]} Be6 {[%emt 0:0:13]} 26. Qxe4 {[%emt 0:0:8]
} Rd8 {[%emt 0:0:49]} 27. Nb5 {[%emt 0:0:9]} Qb8 {[%emt 0:0:0]} 28. Rxd8 {[%emt 0:0:5]} Qxd8 {[%emt 0:0:2]} 29. Qxe5 {[%emt 0:0:8]} Rd7 {[%emt 0:0:14]} 30. Nc3 {[%emt 0:0:10]} Rd2 {[%emt 0:0:10]} 31. Re2 {[%emt 0:0:19]
} Qd4 {[%emt 0:0:20]} 32. Qxd4 {[%emt 0:0:9]} Rxd4 {[%emt 0:0:0]} 33. Nd5 {[%emt 0:1:5]} a4 {[%emt 0:0:50]} 34. Nxb6 {[%emt 0:0:7]} axb3 {[%emt 0:0:1]} 35. axb3 {[%emt 0:0:2]} Kf7 {[%emt 0:0:11]} 36. Na4 {[%emt 0:0:13]
} Nd7 {[%emt 0:0:6]} 37. Bc6 {[%emt 0:0:3]} Rd1 {[%emt 0:0:0]} 38. g4 {[%emt 0:0:15]} h5 {[%emt 0:0:11]} 39. gxh5 {[%emt 0:0:20]} Rb1 {[%emt 0:0:21]} 40. Bxd7 {[%emt 0:0:12]} Bxd7 {[%emt 0:0:0]} 41. Nxc5 {[%emt 0:0:2]
} Bc6 {[%emt 0:0:1]} 42. Kg3 {[%emt 0:0:6]} Rc1 {[%emt 0:0:0]} 43. Kf4 {[%emt 0:0:19]} Bg2 {[%emt 0:0:3]} 44. Re3 {[%emt 0:0:8]} Rc2 {[%emt 0:0:2]} 45. f3 {[%emt 0:0:2]} Bxh3 {[%emt 0:0:3]} 46. Ne4 {[%emt 0:0:2]
} Bf1 {[%emt 0:0:11]} 47. Rc3 {[%emt 0:0:6]} Rh2 {[%emt 0:0:0]} 48. c5 {[%emt 0:0:2]} Ke7 {[%emt 0:0:15]} 49. c6 {[%emt 0:0:2]} Ba6 {[%emt 0:0:2]
} 50. Re3 {[%emt 0:0:36]} Bc8 {[%emt 0:0:10]} 51. Nc3+ {[%emt 0:0:17]
} Kd8 {[%emt 0:0:18]} 52. Nd5 {[%emt 0:0:22]} Rxh5 {[%emt 0:0:0]} 53. Re5 {[%emt 0:0:5]} Rh1 {[%emt 0:0:18]} 54. Re7 {[%emt 0:0:5]} 1-0

[Event "FIDE World Rapid-ch Open 2018"]
[White "Mikhalevski, Victor"]
[Black "Yeritsyan, Aram"]
[Site "St. Petersburg"]
[Round "3.87"]
[Annotator "ChessBase"]
[Result "1-0"]
[Date "2018.12.26"]
[WhiteElo "2579"]
[BlackElo "2372"]
[PlyCount "43"]
[TimeControl "900+10"]

1. Nf3 {[%emt 0:0:0]} Nf6 {[%emt 0:0:0]} 2. g3 {[%emt 0:0:0]} b5 {[%emt 0:0:0]
} 3. Bg2 {[%emt 0:0:3]} Bb7 {[%emt 0:0:0]} 4. Na3 {[%emt 0:0:0]} a6 {[%emt 0:0:1]} 5. c4 {[%emt 0:0:2]} e5 {[%emt 0:0:2]} 6. b3 {[%emt 0:0:21]
} Bc5 {[%emt 0:0:46]} 7. Bb2 {[%emt 0:0:49]} Qe7 {[%emt 0:0:0]} 8. Nc2 {[%emt 0:0:5]} e4 {[%emt 0:0:38]} 9. Nfd4 {[%emt 0:0:10]} 0-0 {[%emt 0:0:19]
} 10. 0-0 {[%emt 0:1:8]} bxc4 {[%emt 0:0:31]} 11. bxc4 {[%emt 0:0:9]
} d6 {[%emt 0:2:29]} 12. Rb1 {[%emt 0:0:42]} Nbd7 {[%emt 0:0:0]} 13. Nf5 {[%emt 0:0:25]} Qe6 {[%emt 0:0:11]} 14. Bh3 {[%emt 0:0:16]} Qxc4 {[%emt 0:1:6]} 15. Bxf6 {[%emt 0:0:11]} Nxf6 {[%emt 0:0:1]} 16. Rxb7 {[%emt 0:0:2]} Bb6 {[%emt 0:0:6]} 17. Nce3 {[%emt 0:1:2]} Qxa2 {[%emt 0:0:0]} 18. Qa1 {[%emt 0:0:2]} Qxd2 {[%emt 0:1:45]} 19. Nxg7 {[%emt 0:4:2]
} Kxg7 {[%emt 0:0:11]} 20. Rxb6 {[%emt 0:0:3]} cxb6 {[%emt 0:0:26]} 21. Rd1 {[%emt 0:0:5]} Qxe2 {[%emt 0:0:32]} 22. Nf5+ {[%emt 0:0:17]} 1-0

[Event "FIDE World Rapid-ch Open 2018"]
[White "Gaifullin, Artur"]
[Black "Kovalev, Vladislav"]
[Site "St. Petersburg"]
[Round "3.88"]
[Annotator "ChessBase"]
[Result "0-1"]
[Date "2018.12.26"]
[WhiteElo "2448"]
[BlackElo "2683"]
[PlyCount "86"]
[TimeControl "900+10"]

1. Nf3 {[%emt 0:0:0]} Nf6 {[%emt 0:0:0]} 2. d4 {[%emt 0:0:0]} g6 {[%emt 0:0:0]
} 3. c4 {[%emt 0:0:0]} Bg7 {[%emt 0:0:0]} 4. Nc3 {[%emt 0:0:0]} 0-0 {[%emt 0:0:0]} 5. e4 {[%emt 0:0:1]} d6 {[%emt 0:0:0]} 6. Be2 {[%emt 0:0:2]
} Na6 {[%emt 0:0:0]} 7. 0-0 {[%emt 0:0:15]} e5 {[%emt 0:0:0]
} 8. Be3 {[%emt 0:0:50]} Ng4 {[%emt 0:0:10]} 9. Bg5 Qe8 10. dxe5 {[%emt 0:0:0]} Nxe5 {[%emt 0:0:8]} 11. Nd4 {[%emt 0:0:8]} Nc6 {[%emt 0:0:25]} 12. Nxc6 {[%emt 0:0:44]} bxc6 {[%emt 0:0:2]} 13. Be3 {[%emt 0:0:52]} Nc5 {[%emt 0:0:28]
} 14. Bxc5 {[%emt 0:0:32]} dxc5 {[%emt 0:0:1]} 15. Qc2 {[%emt 0:0:5]
} Bd4 {[%emt 0:0:17]} 16. Bf3 {[%emt 0:0:22]} Qe5 {[%emt 0:0:0]} 17. Rac1 {[%emt 0:0:3]} h5 {[%emt 0:1:37]} 18. b3 {[%emt 0:0:41]} Bg4 {[%emt 0:0:59]} 19. Bd1 {[%emt 0:2:57]} Rad8 {[%emt 0:0:46]} 20. Ne2 {[%emt 0:1:36]
} Rfe8 {[%emt 0:0:49]} 21. Nxd4 {[%emt 0:1:12]} cxd4 {[%emt 0:0:0]} 22. f3 {[%emt 0:0:3]} Bc8 {[%emt 0:0:11]} 23. Qd3 {[%emt 0:0:16]} f5 {[%emt 0:0:20]} 24. Bc2 {[%emt 0:0:11]} c5 {[%emt 0:0:27]} 25. Rce1 {[%emt 0:0:17]
} f4 {[%emt 0:0:45]} 26. Rc1 {[%emt 0:1:13]} g5 {[%emt 0:0:5]
} 27. a3 {[%emt 0:1:4]} Re7 {[%emt 0:1:41]} 28. b4 {[%emt 0:0:59]} Rg7 {[%emt 0:0:1]
} 29. bxc5 {[%emt 0:0:1]} g4 {[%emt 0:0:3]} 30. c6 {[%emt 0:0:0]} gxf3 {[%emt 0:3:15]} 31. Rxf3 {[%emt 0:0:38]} Bg4 {[%emt 0:0:5]} 32. Rf2 {[%emt 0:0:1]} Rf8 {[%emt 0:1:16]} 33. Bd1 {[%emt 0:1:22]} Rf6 {[%emt 0:0:43]
} 34. Bxg4 {[%emt 0:0:56]} hxg4 {[%emt 0:0:2]} 35. Rd1 {[%emt 0:0:12]
} Rd6 {[%emt 0:1:52]} 36. c5 {[%emt 0:0:5]} Rd8 {[%emt 0:0:0]} 37. Qc4+ {[%emt 0:0:31]} Kh7 {[%emt 0:0:2]} 38. Rfd2 {[%emt 0:0:2]} g3 {[%emt 0:0:38]} 39. hxg3 {[%emt 0:0:54]} fxg3 {[%emt 0:0:31]} 40. Rxd4 {[%emt 0:0:14]
} Rxd4 {[%emt 0:0:37]} 41. Qxd4 {[%emt 0:0:24]} Qh5 {[%emt 0:0:0]} 42. e5 {[%emt 0:0:14]} Rf7 {[%emt 0:1:7]} 43. Qd3+ {[%emt 0:0:4]} Kh8 {[%emt 0:0:3]} 0-1

[Event "FIDE World Rapid-ch Open 2018"]
[White "Rechlis, Gad"]
[Black "Pershin, Denis"]
[Site "St. Petersburg"]
[Round "3.89"]
[Annotator "ChessBase"]
[Result "0-1"]
[Date "2018.12.26"]
[WhiteElo "2521"]
[BlackElo "2400"]
[PlyCount "68"]
[TimeControl "900+10"]

1. Nf3 {[%emt 0:0:0]} d5 {[%emt 0:0:0]} 2. c4 {[%emt 0:0:0]} c6 {[%emt 0:0:0]} 3. b3 {[%emt 0:0:11]} Nf6 {[%emt 0:0:0]} 4. Bb2 {[%emt 0:0:2]} Bg4 {[%emt 0:0:16]} 5. g3 {[%emt 0:0:28]} Nbd7 {[%emt 0:0:2]} 6. Bg2 {[%emt 0:0:0]} e6 {[%emt 0:0:7]} 7. 0-0 {[%emt 0:0:2]} Bd6 {[%emt 0:0:26]} 8. d4 {[%emt 0:0:5]} 0-0 {[%emt 0:0:13]} 9. Nbd2 {[%emt 0:0:5]} a5 {[%emt 0:0:0]} 10. a3 {[%emt 0:0:15]} Qc7 {[%emt 0:0:42]} 11. Rc1 {[%emt 0:0:6]} Qb8 {[%emt 0:0:48]} 12. Qc2 {[%emt 0:0:36]} Bf5 {[%emt 0:1:12]} 13. Qc3 {[%emt 0:0:6]
} b5 {[%emt 0:1:6]} 14. Ne5 {[%emt 0:2:31]} b4 {[%emt 0:0:31]
} 15. axb4 {[%emt 0:0:10]} axb4 {[%emt 0:1:37]} 16. Qe3 {[%emt 0:0:4]} Nxe5 {[%emt 0:0:7]} 17. dxe5 {[%emt 0:1:18]} Ng4 {[%emt 0:0:1]} 18. Qg5 {[%emt 0:1:3]
} h6 {[%emt 0:0:6]} 19. Qh4 {[%emt 0:0:54]} Bxe5 {[%emt 0:0:0]} 20. Bxe5 {[%emt 0:0:26]} Qxe5 {[%emt 0:0:2]} 21. cxd5 {[%emt 0:0:41]} cxd5 {[%emt 0:0:12]} 22. e4 {[%emt 0:0:10]} dxe4 {[%emt 0:0:42]} 23. Nxe4 {[%emt 0:0:50]
} Ra2 {[%emt 0:1:24]} 24. Rc4 {[%emt 0:1:15]} Qb2 {[%emt 0:0:0]} 25. Bh1 {[%emt 0:4:40]} Qxb3 {[%emt 0:1:9]} 26. Nd6 {[%emt 0:0:7]} Qd3 {[%emt 0:3:13]} 27. Qe7 {[%emt 0:2:44]} Nxh2 {[%emt 0:0:14]} 28. Rfc1 {[%emt 0:0:24]
} Nf3+ {[%emt 0:0:4]} 29. Kg2 {[%emt 0:0:21]} Qd2 {[%emt 0:0:0]} 30. Rf1 {[%emt 0:0:1]} Bd3 {[%emt 0:0:7]} 31. Rcc1 {[%emt 0:0:16]} Bxf1+ {[%emt 0:0:3]} 32. Rxf1 {[%emt 0:0:1]} Qd5 {[%emt 0:0:12]} 33. g4 {[%emt 0:0:17]
} Nh4+ {[%emt 0:0:30]} 34. Kg3 {[%emt 0:0:7]} Ra3+ {[%emt 0:0:0]} 0-1

[Event "FIDE World Rapid-ch Open 2018"]
[White "Guimaraes, Diogo Duarte"]
[Black "Zablotsky, Sergei"]
[Site "St. Petersburg"]
[Round "3.90"]
[Annotator "ChessBase"]
[Result "0-1"]
[Date "2018.12.26"]
[WhiteElo "2278"]
[BlackElo "2511"]
[PlyCount "58"]
[TimeControl "900+10"]

1. e4 {[%emt 0:0:0]} d6 {[%emt 0:0:0]} 2. d4 {[%emt 0:0:0]} Nf6 {[%emt 0:0:0]} 3. Nc3 {[%emt 0:0:0]} e5 {[%emt 0:0:0]} 4. Nf3 {[%emt 0:0:12]} Nbd7 {[%emt 0:0:0]} 5. Bc4 {[%emt 0:0:4]} Be7 {[%emt 0:0:0]} 6. 0-0 {[%emt 0:0:2]
} 0-0 {[%emt 0:0:0]} 7. Re1 {[%emt 0:0:9]} c6 {[%emt 0:0:1]
} 8. a4 {[%emt 0:0:56]} exd4 {[%emt 0:0:3]} 9. Qxd4 {[%emt 0:1:0]} Ne5 {[%emt 0:0:24]
} 10. Nxe5 {[%emt 0:1:32]} dxe5 {[%emt 0:0:3]} 11. Qxe5 {[%emt 0:0:8]
} Ng4 {[%emt 0:0:41]} 12. Qf4 {[%emt 0:1:17]} Bd6 {[%emt 0:0:0]} 13. e5 {[%emt 0:2:51]} Nxe5 {[%emt 0:0:3]} 14. Ne4 {[%emt 0:1:25]} Bc7 {[%emt 0:3:36]} 15. Ng5 {[%emt 0:4:53]} h6 {[%emt 0:0:11]} 16. Nf3 {[%emt 0:0:0]} Nd3 {[%emt 0:0:33]} 17. Qe4 {[%emt 0:1:1]} Nxe1 {[%emt 0:0:12]} 18. Qxe1 {[%emt 0:0:1]} Bg4 {[%emt 0:0:51]} 19. Qc3 {[%emt 0:0:33]} Bxf3 {[%emt 0:0:49]
} 20. Qxf3 {[%emt 0:0:1]} Qh4 {[%emt 0:0:58]} 21. Bb3 {[%emt 0:0:15]
} Qxh2+ {[%emt 0:0:15]} 22. Kf1 {[%emt 0:0:1]} Qh1+ {[%emt 0:0:0]} 23. Ke2 {[%emt 0:0:1]} Rae8+ {[%emt 0:0:9]} 24. Kd3 {[%emt 0:0:12]
} Re1 {[%emt 0:0:38]} 25. Bf4 {[%emt 0:0:19]} Qf1+ {[%emt 0:0:41]} 26. Kd4 {[%emt 0:0:20]
} Bb6+ {[%emt 0:0:46]} 27. Kc3 {[%emt 0:0:2]} Ba5+ {[%emt 0:0:0]} 28. Kd4 {[%emt 0:0:10]} Rxa1 {[%emt 0:0:5]} 29. Bd6 {[%emt 0:0:7]} Qd1+ {[%emt 0:0:4]} 0-1

[Event "FIDE World Rapid-ch Open 2018"]
[White "Dubrovin, Robert"]
[Black "Vaisser, Anatoli"]
[Site "St. Petersburg"]
[Round "3.91"]
[Annotator "ChessBase"]
[Result "0-1"]
[Date "2018.12.26"]
[WhiteElo "2220"]
[BlackElo "2505"]
[PlyCount "110"]
[TimeControl "900+10"]

1. d4 {[%emt 0:0:0]} Nf6 {[%emt 0:0:0]} 2. c4 {[%emt 0:0:0]} c5 {[%emt 0:0:0]} 3. d5 b5 4. cxb5 {[%emt 0:0:0]} a6 {[%emt 0:0:0]} 5. bxa6 {[%emt 0:0:0]} g6 {[%emt 0:0:0]} 6. Nc3 {[%emt 0:0:1]} Bg7 {[%emt 0:0:0]} 7. e4 {[%emt 0:0:2]} 0-0 {[%emt 0:0:34]} 8. Be2 {[%emt 0:0:11]} Qa5 {[%emt 0:0:0]} 9. Bd2 {[%emt 0:0:3]} Bxa6 {[%emt 0:0:12]} 10. Nf3 {[%emt 0:0:3]} d6 {[%emt 0:0:23]} 11. 0-0 {[%emt 0:0:2]} Nfd7 {[%emt 0:0:16]} 12. Qc2 {[%emt 0:3:38]
} Bxe2 {[%emt 0:0:43]} 13. Nxe2 {[%emt 0:0:1]} Qa4 {[%emt 0:0:0]} 14. b3 {[%emt 0:1:13]} Qa6 {[%emt 0:0:38]} 15. Bc3 {[%emt 0:0:17]} Nf6 {[%emt 0:0:8]} 16. a4 {[%emt 0:2:4]} Nbd7 {[%emt 0:0:19]} 17. Ng3 {[%emt 0:0:45]
} Rfb8 {[%emt 0:0:11]} 18. Nd2 {[%emt 0:0:6]} Ng4 {[%emt 0:0:0]} 19. Bxg7 {[%emt 0:1:41]} Kxg7 {[%emt 0:0:3]} 20. Qc3+ {[%emt 0:0:8]} Kg8 {[%emt 0:0:9]} 21. Rac1 {[%emt 0:1:22]} Nge5 {[%emt 0:0:31]} 22. f4 {[%emt 0:0:51]
} Nd3 {[%emt 0:0:9]} 23. Rc2 {[%emt 0:0:10]} Nb4 {[%emt 0:0:0]} 24. Rb2 {[%emt 0:0:26]} Qd3 {[%emt 0:0:5]} 25. Rf3 {[%emt 0:0:12]} Qxc3 {[%emt 0:0:13]} 26. Rxc3 {[%emt 0:0:1]} f5 {[%emt 0:0:28]} 27. exf5 {[%emt 0:0:28]
} Nxd5 {[%emt 0:0:3]} 28. Rd3 {[%emt 0:1:46]} Nxf4 {[%emt 0:0:0]} 29. Rf3 {[%emt 0:0:1]} Ne5 {[%emt 0:0:20]} 30. Rxf4 {[%emt 0:2:9]} Nd3 31. Re4 Nxb2 {[%emt 0:0:3]} 32. Rxe7 {[%emt 0:0:1]} Re8 {[%emt 0:0:9]
} 33. Rd7 {[%emt 0:0:13]} Rad8 {[%emt 0:0:11]} 34. Rc7 {[%emt 0:0:1]} Re1+ {[%emt 0:0:26]} 35. Kf2 {[%emt 0:0:18]} Nd3+ {[%emt 0:0:8]} 36. Kf3 {[%emt 0:0:1]
} Rf8 {[%emt 0:0:20]} 37. a5 {[%emt 0:0:40]} Ne5+ {[%emt 0:0:0]} 38. Kf4 {[%emt 0:0:10]} Rf7 {[%emt 0:0:52]} 39. Rc8+ {[%emt 0:0:6]} Kg7 {[%emt 0:0:2]} 40. Nde4 {[%emt 0:0:11]} Nd3+ {[%emt 0:0:11]} 41. Kf3 {[%emt 0:0:26]
} Rd7 {[%emt 0:0:48]} 42. f6+ {[%emt 0:0:21]} Kh6 {[%emt 0:0:0]} 43. h4 {[%emt 0:0:28]} Ne5+ {[%emt 0:1:51]} 44. Kf4 {[%emt 0:0:5]} Nd3+ {[%emt 0:0:48]} 45. Kf3 {[%emt 0:0:1]} Rf7 {[%emt 0:0:32]} 46. Rd8 {[%emt 0:0:23]
} Ne5+ {[%emt 0:0:31]} 47. Kf4 {[%emt 0:0:6]} Nd7 {[%emt 0:0:0]} 48. a6 {[%emt 0:1:20]} Nxf6 {[%emt 0:0:26]} 49. Nxd6 {[%emt 0:0:5]} Nh5+ {[%emt 0:0:53]} 50. Kg4 {[%emt 0:0:5]} Rf4+ {[%emt 0:0:3]} 51. Kh3 {[%emt 0:0:1]
} Re3 {[%emt 0:0:21]} 52. a7 {[%emt 0:0:24]} Nxg3 {[%emt 0:0:0]} 53. a8=Q {[%emt 0:0:21]} Ne4+ {[%emt 0:0:30]} 54. g3 {[%emt 0:0:5]} Rxg3+ {[%emt 0:0:4]} 55. Kh2 {[%emt 0:0:1]} Rxh4# 0-1

[Event "FIDE World Rapid-ch Open 2018"]
[White "Danielyan, Vahe"]
[Black "Oganian, Miran"]
[Site "St. Petersburg"]
[Round "3.92"]
[Annotator "NA"]
[Result "0-1"]
[Date "2018.12.26"]
[WhiteElo "2220"]
[BlackElo "2423"]
[PlyCount "100"]
[TimeControl "900+10"]

1. e4 {[%emt 0:0:0]} c5 {[%emt 0:0:0]} 2. Nc3 {[%emt 0:0:0]} Nc6 {[%emt 0:0:8]
} 3. Bb5 {[%emt 0:0:0]} Nd4 {[%emt 0:0:12]} 4. Bc4 {[%emt 0:0:0]} e6 {[%emt 0:0:31]} 5. Nge2 {[%emt 0:0:7]} Ne7 {[%emt 0:1:1]} 6. Nxd4 {[%emt 0:0:4]} cxd4 {[%emt 0:0:2]} 7. Ne2 {[%emt 0:0:2]} Nc6 {[%emt 0:1:6]
} 8. 0-0 {[%emt 0:0:4]} Bc5 {[%emt 0:0:2]} 9. c3 {[%emt 0:0:0]} 0-0 {[%emt 0:0:46]} 10. b4 {[%emt 0:0:36]} Bb6 {[%emt 0:0:4]} 11. cxd4 {[%emt 0:0:1]} d5 {[%emt 0:0:48]} 12. exd5 {[%emt 0:2:38]} exd5 {[%emt 0:0:0]} 13. Bb5 {[%emt 0:0:20]} Nxd4 {[%emt 0:0:51]} 14. Nxd4 {[%emt 0:0:40]
} Bxd4 {[%emt 0:0:6]} 15. Rb1 {[%emt 0:0:5]} Bf5 {[%emt 0:1:25]} 16. Rb3 {[%emt 0:0:36]
} Rc8 {[%emt 0:0:2]} 17. Bd3 {[%emt 0:1:15]} Bxd3 {[%emt 0:0:0]} 18. Rxd3 {[%emt 0:0:1]} Qb6 {[%emt 0:0:2]} 19. Qf3 {[%emt 0:1:31]} Rfe8 {[%emt 0:3:6]} 20. g3 {[%emt 0:0:4]} Re4 {[%emt 0:0:36]} 21. Qf5 {[%emt 0:0:34]
} Qe6 {[%emt 0:0:14]} 22. Qxe6 {[%emt 0:0:21]} fxe6 {[%emt 0:0:0]} 23. a4 {[%emt 0:0:49]} Rc2 {[%emt 0:1:1]} 24. Kg2 {[%emt 0:0:20]} Bf6 {[%emt 0:1:38]} 25. Ba3 {[%emt 0:0:31]} Rd4 {[%emt 0:0:54]} 26. Rb3 {[%emt 0:3:0]
} Rdxd2 {[%emt 0:0:39]} 27. b5 {[%emt 0:0:5]} Rc3 {[%emt 0:0:0]} 28. Rfb1 {[%emt 0:1:48]} Rxb3 {[%emt 0:0:44]} 29. Rxb3 {[%emt 0:0:3]} Rc2 {[%emt 0:0:16]} 30. a5 {[%emt 0:0:8]} Kf7 {[%emt 0:0:10]} 31. a6 {[%emt 0:0:6]
} bxa6 {[%emt 0:0:43]} 32. bxa6 {[%emt 0:0:3]} Bd4 {[%emt 0:0:0]} 33. Rf3+ {[%emt 0:0:15]} Ke8 {[%emt 0:0:5]} 34. h4 {[%emt 0:0:29]} h5 {[%emt 0:0:9]} 35. Bd6 {[%emt 0:0:59]} Ra2 {[%emt 0:0:9]} 36. Ba3 {[%emt 0:0:21]
} Bxf2 {[%emt 0:0:25]} 37. Rf8+ {[%emt 0:0:22]} Kd7 {[%emt 0:0:0]} 38. Rxf2 {[%emt 0:0:5]} Rxa3 {[%emt 0:0:13]} 39. Rf7+ {[%emt 0:0:0]} Kd6 {[%emt 0:0:13]} 40. Rxa7 {[%emt 0:0:3]} Ke5 {[%emt 0:0:14]} 41. Rxg7 {[%emt 0:1:23]} Rxa6 {[%emt 0:0:1]} 42. Rg5+ {[%emt 0:0:2]} Ke4 {[%emt 0:0:2]
} 43. Rxh5 {[%emt 0:0:2]} d4 {[%emt 0:0:13]} 44. Rh8 {[%emt 0:0:0]} Ra2+ {[%emt 0:0:25]} 45. Kh3 {[%emt 0:0:2]} d3 {[%emt 0:0:8]} 46. Rd8 {[%emt 0:0:3]} Ra5 {[%emt 0:0:5]} 47. Kg2 {[%emt 0:0:21]} Ke3 {[%emt 0:0:13]
} 48. Rd6 {[%emt 0:0:21]} d2 {[%emt 0:0:14]} 49. Kf1 {[%emt 0:0:0]} Rd5 {[%emt 0:0:12]} 50. Rxe6+ {[%emt 0:0:4]} Kd3 {[%emt 0:0:12]} 0-1